bitfinex/quotes_SOLUSD_20241118
["timestamp","ask_amount","ask_price","bid_price","bid_amount"]
[1731934571563,15.2729,243.26,243.18,12.18376122]
[1731934571750,15.2729,243.26,243.12,12.18376122]
[1731934571751,15.2729,243.26,243.2,12.18376122]
[1731934573269,15.2729,243.26,243.1,0.09367462]
[1731934573475,15.2729,243.26,243.06,20.0]
[1731934573476,12.18376122,243.23,243.05,15.2741]
[1731934573647,12.18376122,243.21,243.13,12.18376122]
[1731934574371,19.49413482,243.19,243.11,19.49413482]
[1731934574672,4.1121,243.18,243.09,19.49413482]
[1731934575555,19.49413482,243.17,243.09,19.49413482]
[1731934576473,6.2144,243.16,243.07,19.49413482]
[1731934576677,35.85903482,243.15,243.05,19.49413482]
[1731934576860,19.49413482,243.13,243.05,19.49413482]
[1731934577576,19.49413482,243.11,243.03,19.49413482]
[1731934577864,19.49413482,243.09,243.01,19.49413482]
[1731934578073,19.49413482,243.07,242.99,19.49413482]
[1731934578977,19.49413482,243.05,242.97,19.49413482]
[1731934579268,19.49413482,243.01,242.92,19.49413482]
[1731934579469,6.2601,243.02,242.94,19.49413482]
[1731934581658,6.2601,243.02,242.82,15.9243]
[1731934581659,19.49413482,243.01,242.92,19.49413482]
[1731934582060,6.2601,243.02,242.94,19.49413482]
[1731934582357,6.2601,243.02,242.96,19.49413482]
[1731934582753,6.2601,243.02,242.98,19.49413482]
[1731934584068,6.2601,243.02,242.96,19.49413482]
[1731934585277,19.49413482,243.01,242.92,19.49413482]
[1731934586872,6.2601,243.02,242.96,19.49413482]
[1731934587062,6.2601,243.02,242.88,19.49413482]
[1731934587063,6.2601,243.02,242.98,19.49413482]
[1731934587880,6.0993,243.08,243.0,19.49413482]
[1731934588085,6.0993,243.08,243.02,19.49413482]
[1731934589077,6.0993,243.08,243.06,19.49413482]
[1731934589260,15.1665,243.1,243.06,19.49413482]
[1731934589461,15.1665,243.1,243.08,19.49413482]
[1731934589872,15.1665,243.1,243.06,19.49413482]
[1731934590067,15.1665,243.1,243.04,19.49413482]
[1731934590273,19.49413482,243.09,243.0,19.49413482]
[1731934590469,19.49413482,243.09,242.95,0.09367462]
[1731934590470,15.1665,243.1,243.02,19.49413482]
[1731934590781,4.1137,243.09,243.02,19.49413482]
[1731934591081,19.49413482,243.05,242.96,19.49413482]
[1731934592161,19.49413482,243.05,242.98,19.49413482]
[1731934592584,23.60853482,243.05,242.98,19.49413482]
[1731934592962,19.49413482,243.05,242.98,19.49413482]
[1731934594292,19.49413482,243.09,243.02,19.49413482]
[1731934594580,19.2801,243.1,243.02,19.49413482]
[1731934594999,19.2801,243.1,243.0,19.49413482]
[1731934595000,19.49413482,243.08,243.0,19.49413482]
[1731934595286,19.49413482,243.08,242.98,19.49413482]
[1731934595575,38.77423482,243.1,243.0,19.49413482]
[1731934595783,38.77423482,243.1,243.02,19.49413482]
[1731934596575,15.1665,243.1,243.02,19.49413482]
[1731934596783,15.1665,243.1,243.04,19.49413482]
[1731934597394,15.1665,243.1,243.06,19.49413482]
[1731934600093,15.1665,243.1,243.04,19.49413482]
[1731934600988,34.66063482,243.1,243.02,19.49413482]
[1731934601183,34.66063482,243.1,243.0,19.49413482]
[1731934601491,15.1665,243.1,243.02,19.49413482]
[1731934603987,15.1665,243.1,243.06,19.49413482]
[1731934604369,15.1665,243.1,243.06,12.19046581]
[1731934605573,6.3311,243.13,243.08,12.19046581]
[1731934605890,6.3311,243.13,243.1,12.19046581]
[1731934606188,6.3311,243.13,243.08,12.19046581]
[1731934607308,6.3311,243.13,243.1,12.19046581]
[1731934609783,15.5846,243.16,243.1,12.19046581]
[1731934610011,6.3064,243.19,243.14,12.19046581]
[1731934610193,6.3064,243.19,243.16,12.19046581]
[1731934610392,15.4866,243.22,243.18,12.19046581]
[1731934611692,15.4866,243.22,243.16,12.19046581]
[1731934612497,18.45666581,243.26,243.18,12.19046581]
[1731934613585,22.56746581,243.26,243.18,12.19046581]
[1731934614390,12.19046581,243.24,243.16,12.19046581]
[1731934614592,12.19046581,243.22,243.13,12.19046581]
[1731934614993,12.19046581,243.2,243.11,12.19046581]
[1731934615194,12.19046581,243.17,243.07,12.19046581]
[1731934615381,16.5374,243.16,243.07,12.19046581]
[1731934618791,16.5374,243.16,243.09,12.19046581]
[1731934621399,12.19046581,243.13,243.03,12.19046581]
[1731934622702,12.19046581,243.11,243.01,14.33500907]
[1731934623280,82.19046581,243.11,243.01,14.33500907]
[1731934623497,12.19046581,243.09,242.99,12.19046581]
[1731934623684,12.19046581,243.09,242.99,14.33548597]
[1731934624096,82.19046581,243.11,243.01,12.19046581]
[1731934624598,12.19046581,243.11,243.01,12.19046581]
[1731934624780,4.1135,243.1,243.01,12.19046581]
[1731934625498,12.19046581,243.11,243.01,12.19046581]
[1731934626383,12.19046581,243.07,242.99,12.19046581]
[1731934626587,12.19046581,243.07,242.97,12.19046581]
[1731934626800,4.1142,243.06,242.97,12.19046581]
[1731934628905,4.114,243.08,242.99,12.19046581]
[1731934629502,74.114,243.08,242.99,12.19046581]
[1731934630105,74.114,243.08,242.95,2.14499532]
[1731934630318,12.19046581,243.07,242.98,12.19046581]
[1731934630811,6.2215,243.09,243.05,12.19046581]
[1731934630988,6.2215,243.09,243.08,12.19046581]
[1731934632591,15.1508,243.1,243.08,12.19046581]
[1731934634009,6.0145,243.15,243.08,12.19046581]
[1731934634216,6.0145,243.15,243.12,12.19046581]
[1731934634397,16.5479,243.16,243.14,12.19046581]
[1731934635311,6.0145,243.21,243.14,12.19046581]
[1731934635491,6.0145,243.21,243.19,12.19046581]
[1731934635994,16.0634,243.22,243.19,12.19046581]
[1731934636409,6.2235,243.26,243.21,12.19046581]
[1731934637595,6.1541,243.31,243.25,12.19046581]
[1731934637897,6.1541,243.31,243.3,12.19046581]
[1731934638100,15.4089,243.35,243.3,12.19046581]
[1731934639310,15.4089,243.35,243.32,12.19046581]
[1731934640614,4.108,243.43,243.24,12.19046581]
[1731934640615,16.5249,243.41,243.34,12.19046581]
[1731934640788,16.5249,243.41,243.37,12.19046581]
[1731934641906,12.19046581,243.49,243.39,12.19046581]
[1731934642113,12.19046581,243.49,243.41,12.19046581]
[1731934642517,12.19046581,243.47,243.37,12.19046581]
[1731934642694,12.19046581,243.47,243.28,0.25098]
[1731934642695,12.19046581,243.41,243.32,12.19046581]
[1731934645299,12.19046581,243.43,243.34,12.19046581]
[1731934646000,12.19046581,243.45,243.36,12.19046581]
[1731934646527,4.1071,243.48,243.36,12.19046581]
[1731934646694,4.1071,243.48,243.38,12.19046581]
[1731934647018,4.1071,243.48,243.28,0.1]
[1731934647019,12.19046581,243.45,243.36,12.19046581]
[1731934647324,12.19046581,243.47,243.38,12.19046581]
[1731934647499,12.19046581,243.47,243.29,0.25098]
[1731934647500,12.19046581,243.47,243.4,12.19046581]
[1731934648011,12.19046581,243.45,243.36,12.19046581]
[1731934648601,12.19046581,243.43,243.34,12.19046581]
[1731934650198,12.19046581,243.43,243.28,23.776884]
[1731934650199,12.19046581,243.41,243.28,23.776884]
[1731934650504,12.19046581,243.37,243.28,12.19046581]
[1731934651803,4.109,243.37,243.15,0.1]
[1731934652022,4.109,243.37,243.14,0.1]
[1731934652023,12.19046581,243.35,243.26,12.19046581]
[1731934652207,12.19046581,243.33,243.26,12.19046581]
[1731934652410,12.19046581,243.33,243.24,12.19046581]
[1731934652921,12.19046581,243.33,243.2,12.19046581]
[1731934652922,12.19046581,243.29,243.2,12.19046581]
[1731934653421,15.9273,243.3,243.22,12.19046581]
[1731934653806,16.30076581,243.29,243.22,12.19046581]
[1731934654722,16.30076581,243.29,243.12,12.19046581]
[1731934654723,16.30076581,243.29,243.2,12.19046581]
[1731934655223,15.9273,243.3,243.22,12.19046581]
[1731934655430,12.19046581,243.29,243.22,12.19046581]
[1731934655613,12.19046581,243.29,243.2,12.19046581]
[1731934656020,12.19046581,243.27,243.18,12.19046581]
[1731934656222,12.19046581,243.25,243.16,12.19046581]
[1731934656811,6.6392,243.26,243.05,14.33329236]
[1731934656812,82.19046581,243.17,243.05,14.33329236]
[1731934657013,12.19046581,243.11,243.03,12.19046581]
[1731934657304,12.19046581,243.09,242.99,12.19046581]
[1731934657524,12.19046581,243.11,243.01,12.19046581]
[1731934658036,16.30396581,243.11,243.01,12.19046581]
[1731934658219,19.51310932,243.1,243.01,19.51310932]
[1731934659712,19.51310932,243.08,242.99,19.51310932]
[1731934659935,19.51310932,243.06,242.97,19.51310932]
[1731934660231,19.51310932,243.08,242.99,19.51310932]
[1731934661229,4.1136,243.1,242.97,19.51310932]
[1731934661230,19.51310932,243.06,242.97,19.51310932]
[1731934661730,19.51310932,243.04,242.95,19.51310932]
[1731934661908,19.51310932,243.02,242.93,19.51310932]
[1731934662410,6.145,243.01,242.93,19.51310932]
[1731934662612,19.51310932,242.98,242.89,19.51310932]
[1731934663315,19.51310932,242.98,242.79,15.5407]
[1731934663517,19.51310932,242.98,242.88,19.51310932]
[1731934663724,19.51310932,242.96,242.86,19.51310932]
[1731934665917,19.51310932,242.96,242.88,19.51310932]
[1731934666106,15.1758,243.0,242.88,19.51310932]
[1731934666107,19.51310932,242.98,242.88,19.51310932]
[1731934666434,4.1154,242.99,242.9,19.51310932]
[1731934666811,19.51310932,242.98,242.9,19.51310932]
[1731934667332,19.51310932,242.96,242.88,19.51310932]
[1731934668213,89.51310932,242.96,242.86,19.51310932]
[1731934669218,4.116,242.95,242.86,19.51310932]
[1731934670030,19.51310932,242.94,242.86,19.51310932]
[1731934671029,23.62940932,242.94,242.86,19.51310932]
[1731934671334,15.1758,243.0,242.93,19.51310932]
[1731934671815,19.51310932,242.98,242.89,19.51310932]
[1731934672321,89.291,243.0,242.89,19.51310932]
[1731934672322,38.80410932,243.0,242.89,19.51310932]
[1731934672522,38.80410932,243.0,242.91,19.51310932]
[1731934672733,15.1758,243.0,242.93,19.51310932]
[1731934674120,19.51310932,243.06,242.97,19.51310932]
[1731934674327,22.3809,243.07,242.99,19.51310932]
[1731934674512,22.3809,243.07,242.9,23.902374]
[1731934674513,22.3809,243.07,243.01,19.51310932]
[1731934676322,19.51310932,243.06,242.97,19.51310932]
[1731934677630,23.62730932,243.06,242.97,19.51310932]
[1731934677932,22.3809,243.07,242.99,19.51310932]
[1731934678139,19.51310932,243.06,242.97,19.51310932]
[1731934678642,22.3809,243.07,243.01,19.51310932]
[1731934679019,22.3809,243.07,242.99,19.51310932]
[1731934679219,19.51310932,243.06,242.97,19.51310932]
[1731934679532,22.3809,243.07,243.02,19.51310932]
[1731934680318,22.3809,243.07,243.02,12.19363009]
[1731934680525,22.3809,243.07,243.05,12.19363009]
[1731934680729,22.3809,243.07,243.03,12.19363009]
[1731934681542,22.3809,243.07,243.01,12.19363009]
[1731934682421,22.4069,243.18,243.06,12.19363009]
[1731934682620,22.4069,243.18,243.12,12.19363009]
[1731934682829,22.4069,243.18,243.1,12.19363009]
[1731934683023,12.19363009,243.15,243.06,12.19363009]
[1731934683945,16.30633009,243.15,243.06,12.19363009]
[1731934684937,16.30603009,243.17,243.08,12.19363009]
[1731934685546,26.4121,243.24,243.15,12.19363009]
[1731934685726,12.19363009,243.22,243.13,12.19363009]
[1731934687340,34.49463009,243.24,243.15,12.19363009]
[1731934687845,22.301,243.24,243.17,12.19363009]
[1731934688020,22.301,243.24,243.21,12.19363009]
[1731934688225,160.0,243.38,243.13,0.1]
[1731934688226,22.1916,243.31,243.24,23.776884]
[1731934688426,21.1565,243.38,243.3,19.46897283]
[1731934690432,21.1565,243.38,243.34,19.46897283]
[1731934690731,6.0448,243.43,243.36,19.46897283]
[1731934691244,25.51377283,243.43,243.34,19.46897283]
[1731934691838,25.51377283,243.43,243.32,19.46897283]
[1731934693529,25.51377283,243.43,243.34,19.46897283]
[1731934695434,6.0448,243.43,243.36,19.46897283]
[1731934696532,25.51377283,243.43,243.34,19.46897283]
[1731934699558,19.46897283,243.39,243.3,19.46897283]
[1731934700456,19.46897283,243.33,243.24,19.46897283]
[1731934701441,19.46897283,243.4,243.31,19.46897283]
[1731934702440,19.46897283,243.38,243.29,19.46897283]
[1731934703362,19.46897283,243.36,243.29,19.46897283]
[1731934703957,19.46897283,243.36,243.27,19.46897283]
[1731934705041,19.46897283,243.34,243.25,19.46897283]
[1731934707347,70.0,243.39,243.08,97.1]
[1731934707348,0.09367462,243.3,243.08,97.1]
[1731934707552,19.46897283,243.21,243.12,19.46897283]
[1731934708059,19.46897283,243.31,243.19,19.46897283]
[1731934708251,12.17357238,243.32,243.22,12.17357238]
[1731934708445,12.17357238,243.26,243.06,0.1]
[1731934708659,12.17357238,243.26,243.16,12.17357238]
[1731934709536,12.17357238,243.22,243.06,0.82236701]
[1731934709736,42.10868,243.25,243.0,16.551675]
[1731934709737,12.17357238,243.17,243.08,12.17357238]
[1731934709960,12.17357238,243.15,243.06,12.17357238]
[1731934710347,19.50418488,243.15,243.06,19.50418488]
[1731934712466,19.50418488,243.21,243.1,19.50418488]
[1731934712839,23.61588488,243.21,243.1,19.50418488]
[1731934713166,42.10868,243.25,243.03,0.09367462]
[1731934713167,21.8577,243.25,243.18,19.50418488]
[1731934713460,21.8577,243.25,243.16,19.50418488]
[1731934713646,41.36188488,243.25,243.16,19.50418488]
[1731934715365,19.50418488,243.21,243.12,19.50418488]
[1731934715677,19.50418488,243.19,243.1,19.50418488]
[1731934715966,19.50418488,243.23,243.14,19.50418488]
[1731934716462,41.36188488,243.25,243.16,19.50418488]
[1731934716651,21.8577,243.25,243.18,19.50418488]
[1731934716856,21.8577,243.25,243.2,19.50418488]
[1731934717367,21.8577,243.25,243.18,19.50418488]
[1731934717743,15.3757,243.25,243.2,19.50418488]
[1731934717949,15.3757,243.25,243.22,19.50418488]
[1731934718567,23.0082,243.31,243.24,19.50418488]
[1731934718958,23.0082,243.31,243.26,19.50418488]
[1731934719142,19.50418488,243.37,243.28,19.50418488]
[1731934719564,19.50418488,243.35,243.26,19.50418488]
[1731934721375,22.4792,243.38,243.3,19.50418488]
[1731934722070,41.98338488,243.38,243.3,19.50418488]
[1731934722775,19.50418488,243.31,243.13,0.1]
[1731934723075,19.50418488,243.29,243.19,19.50418488]
[1731934723853,70.0,243.34,243.09,21.5535]
[1731934723854,15.7678,243.26,243.17,19.50418488]
[1731934724369,19.50418488,243.25,243.15,19.50418488]
[1731934724579,19.50418488,243.23,243.15,19.50418488]
[1731934725080,19.50418488,243.16,243.07,2.14361166]
[1731934725381,19.50418488,243.16,242.96,4.60105065]
[1731934725382,19.50418488,243.12,243.02,19.50418488]
[1731934726955,19.50418488,243.1,243.02,19.50418488]
[1731934727269,36.11148488,243.06,242.95,19.50418488]
[1731934727584,36.11148488,243.06,242.9,0.1]
[1731934727585,16.6073,243.06,242.99,19.50418488]
[1731934729081,35.41858488,243.12,243.03,19.50418488]
[1731934729282,19.50418488,243.1,243.01,19.50418488]
[1731934730371,35.41858488,243.12,243.03,19.50418488]
[1731934732380,15.9144,243.12,243.07,19.50418488]
[1731934734466,15.9144,243.12,243.05,19.50418488]
[1731934734676,35.41858488,243.12,243.05,19.50418488]
[1731934735482,15.9144,243.12,243.05,19.50418488]
[1731934735662,35.41858488,243.12,243.03,19.50418488]
[1731934735859,19.50418488,243.1,243.01,19.50418488]
[1731934736060,19.50418488,243.16,243.07,19.50418488]
[1731934736264,19.50418488,243.14,243.05,19.50418488]
[1731934738268,19.50418488,243.16,243.07,19.50418488]
[1731934738764,21.8664,243.2,243.15,19.50418488]
[1731934738964,25.643,243.32,243.19,19.50418488]
[1731934739191,19.50418488,243.31,243.22,19.50418488]
[1731934740474,19.50418488,243.31,243.13,0.19367462]
[1731934740475,19.50418488,243.27,243.09,0.1]
[1731934740663,19.50418488,243.25,243.17,19.50418488]
[1731934740864,21.5332,243.32,243.24,19.50418488]
[1731934741195,21.5332,243.32,243.27,19.50418488]
[1731934743075,21.5332,243.32,243.25,19.50418488]
[1731934743397,19.50418488,243.29,243.2,19.50418488]
[1731934744269,21.5332,243.32,243.27,19.50418488]
[1731934744469,21.5332,243.32,243.29,19.50418488]
[1731934744678,21.5332,243.32,243.24,19.50418488]
[1731934744679,34.53648488,243.38,243.31,19.50418488]
[1731934745392,38.64528488,243.38,243.29,19.50418488]
[1731934745692,19.50418488,243.36,243.27,19.50418488]
[1731934745867,4.1093,243.35,243.27,19.50418488]
[1731934747392,19.50418488,243.36,243.27,19.50418488]
[1731934748696,4.1089,243.37,243.29,19.50418488]
[1731934748994,15.0323,243.38,243.31,19.50418488]
[1731934749287,15.0323,243.38,243.33,19.50418488]
[1731934752867,19.50418488,243.4,243.26,24.027864]
[1731934753074,19.50418488,243.31,243.21,21.5908]
[1731934753284,19.50418488,243.31,243.22,19.50418488]
[1731934753497,19.50418488,243.29,243.2,19.50418488]
[1731934753792,70.0,243.35,243.18,19.50418488]
[1731934753793,19.50418488,243.27,243.18,19.50418488]
[1731934754496,25.77568488,243.29,243.2,19.50418488]
[1731934754893,4.1104,243.28,243.2,19.50418488]
[1731934757103,23.61458488,243.28,243.2,19.50418488]
[1731934757397,23.61458488,243.28,243.18,19.50418488]
[1731934761095,19.50418488,243.26,243.16,19.50418488]
[1731934762398,4.1104,243.28,243.2,19.50418488]
[1731934762586,19.50418488,243.24,243.14,19.50418488]
[1731934763701,4.1113,243.23,243.14,19.50418488]
[1731934767376,4.1113,243.23,243.16,19.50418488]
[1731934768899,6.2715,243.29,243.2,19.50418488]
[1731934769112,4.1107,243.27,243.2,19.50418488]
[1731934770502,6.2715,243.29,243.22,19.50418488]
[1731934770688,10.3818,243.29,243.22,19.50418488]
[1731934774887,10.3818,243.29,243.24,19.50418488]
[1731934775789,6.2715,243.29,243.28,19.50418488]
[1731934775981,15.0751,243.3,243.28,19.50418488]
[1731934776507,15.0751,243.3,243.26,12.16888335]
[1731934776703,19.1852,243.3,243.22,12.16888335]
[1731934778512,15.0751,243.3,243.15,0.19367462]
[1731934778716,15.0751,243.3,243.24,12.16888335]
[1731934779007,15.0751,243.3,243.26,12.16888335]
[1731934779404,12.16888335,243.27,243.06,16.4767]
[1731934779606,12.16888335,243.25,243.16,12.16888335]
[1731934780397,4.1111,243.24,243.16,12.16888335]
[1731934781017,15.5478,243.2,243.07,2.14383748]
[1731934781193,15.5478,243.2,243.12,12.16888335]
[1731934781388,15.5478,243.2,243.14,12.16888335]
[1731934781900,12.16888335,243.17,243.06,12.16888335]
[1731934782191,15.5478,243.2,243.08,12.16888335]
[1731934782192,20.0,243.19,243.08,12.16888335]
[1731934782394,16.28098335,243.18,243.08,12.16888335]
[1731934783210,12.16888335,243.16,243.08,12.16888335]
[1731934783394,16.28148335,243.16,243.08,12.16888335]
[1731934783599,4.1126,243.16,243.08,12.16888335]
[1731934784212,4.1126,243.16,243.08,19.50068533]
[1731934784509,70.0,243.18,243.04,0.8226856]
[1731934784712,19.50068533,243.16,243.06,19.50068533]
[1731934785590,4.1126,243.15,243.06,19.50068533]
[1731934786420,19.50068533,243.14,243.06,19.50068533]
[1731934786592,19.50068533,243.14,243.03,2.14446883]
[1731934786593,19.50068533,243.14,243.04,19.50068533]
[1731934786999,19.50068533,243.1,243.0,20.71817333]
[1731934787716,19.50068533,243.1,243.02,19.50068533]
[1731934788305,6.0379,243.11,243.04,19.50068533]
[1731934788509,19.50068533,243.1,243.02,19.50068533]
[1731934789914,6.0379,243.11,243.04,19.50068533]
[1731934790297,19.50068533,243.1,243.02,19.50068533]
[1731934790496,10.1512,243.11,243.0,20.71817333]
[1731934790497,19.50068533,243.08,243.0,20.71817333]
[1731934790715,19.50068533,243.08,243.0,1.217488]
[1731934791793,19.1807,243.09,243.0,20.71817333]
[1731934792409,15.0669,243.09,243.03,19.50068533]
[1731934792900,15.0669,243.09,243.05,19.50068533]
[1731934793099,15.6064,243.14,243.08,23.776884]
[1731934793408,15.6064,243.14,243.11,19.50068533]
[1731934793605,6.4395,243.18,243.11,19.50068533]
[1731934794918,30.05238533,243.18,243.09,19.50068533]
[1731934795311,25.94018533,243.18,243.09,19.50068533]
[1731934795519,6.4395,243.18,243.11,19.50068533]
[1731934797023,6.4395,243.18,243.13,19.50068533]
[1731934797906,15.6064,243.2,243.15,19.50068533]
[1731934799915,15.6064,243.2,243.13,19.50068533]
[1731934800306,35.10708533,243.2,243.12,23.776884]
[1731934800632,15.6064,243.2,243.13,19.50068533]
[1731934800924,6.0855,243.24,243.17,19.50068533]
[1731934801116,6.0855,243.24,243.19,19.50068533]
[1731934801321,16.0689,243.26,243.21,19.50068533]
[1731934801842,16.0689,243.26,243.19,19.50068533]
[1731934802009,16.0689,243.26,243.21,19.50068533]
[1731934802335,16.0689,243.26,243.23,19.50068533]
[1731934802848,16.0689,243.26,243.21,19.50068533]
[1731934803131,16.0689,243.26,243.19,19.50068533]
[1731934803309,35.56958533,243.26,243.18,23.776884]
[1731934803714,16.0689,243.26,243.19,19.50068533]
[1731934804821,16.0689,243.26,243.18,23.776884]
[1731934804822,16.0689,243.26,243.21,19.50068533]
[1731934805924,6.0084,243.3,243.23,19.50068533]
[1731934806237,6.0084,243.3,243.25,12.17124145]
[1731934806422,6.0084,243.3,243.26,23.776884]
[1731934806736,6.0084,243.3,243.27,12.17124145]
[1731934807306,16.506,243.32,243.27,12.17124145]
[1731934807728,6.5295,243.34,243.29,12.17124145]
[1731934808036,6.5295,243.34,243.31,12.17124145]
[1731934808241,160.0,243.46,243.36,0.09367462]
[1731934808242,6.5647,243.41,243.36,0.09367462]
[1731934808535,15.6959,243.44,243.38,12.17124145]
[1731934809453,12.17124145,243.41,243.34,35.94812545]
[1731934809736,12.17124145,243.39,243.3,12.17124145]
[1731934809915,12.17124145,243.37,243.29,23.776884]
[1731934810114,12.17124145,243.37,243.28,12.17124145]
[1731934810414,12.17124145,243.33,243.24,12.17124145]
[1731934810635,16.3882,243.32,243.24,12.17124145]
[1731934810932,16.3882,243.32,243.28,12.17124145]
[1731934811238,16.3882,243.32,243.24,12.17124145]
[1731934811440,16.356,243.39,243.28,12.17124145]
[1731934811734,16.356,243.39,243.3,12.17124145]
[1731934811916,12.17124145,243.36,243.28,12.17124145]
[1731934812117,16.28034145,243.36,243.28,12.17124145]
[1731934812329,16.28034145,243.36,243.26,12.17124145]
[1731934813618,16.356,243.39,243.35,23.776884]
[1731934813814,16.356,243.39,243.36,12.17124145]
[1731934814413,16.356,243.39,243.38,12.17124145]
[1731934814638,6.2376,243.4,243.38,12.17124145]
[1731934814817,15.0854,243.45,243.38,12.17124145]
[1731934815022,15.0854,243.45,243.41,23.776884]
[1731934815434,16.3827,243.53,243.45,0.25098]
[1731934815624,6.5797,243.55,243.51,12.17124145]
[1731934816020,6.5797,243.55,243.45,0.25098]
[1731934816021,6.5797,243.55,243.49,12.17124145]
[1731934816233,6.5797,243.55,243.49,19.43503443]
[1731934819743,6.5797,243.55,243.43,0.25098]
[1731934819921,6.5797,243.55,243.48,19.43503443]
[1731934820545,6.5797,243.55,243.52,19.43503443]
[1731934821519,26.5771,243.6,243.54,19.43503443]
[1731934822018,22.472,243.6,243.54,19.43503443]
[1731934822227,19.43503443,243.67,243.58,19.43503443]
[1731934822531,26.4074,243.66,243.6,19.43503443]
[1731934823125,26.4074,243.66,243.58,19.43503443]
[1731934823328,19.43503443,243.65,243.56,19.43503443]
[1731934823723,19.43503443,243.63,243.54,19.43503443]
[1731934824542,19.43503443,243.59,243.5,19.43503443]
[1731934825945,4.1054,243.58,243.48,19.43503443]
[1731934826452,16.214,243.56,243.48,19.43503443]
[1731934827049,6.3954,243.55,243.48,19.43503443]
[1731934827341,25.83043443,243.55,243.46,19.43503443]
[1731934827725,4.1061,243.54,243.46,19.43503443]
[1731934828047,6.3954,243.55,243.48,19.43503443]
[1731934828428,10.5013,243.55,243.48,19.43503443]
[1731934829045,6.3954,243.55,243.5,19.43503443]
[1731934829629,6.3954,243.55,243.52,19.43503443]
[1731934829826,16.214,243.56,243.52,19.43503443]
[1731934830048,16.214,243.56,243.43,0.82127115]
[1731934830049,26.7816,243.61,243.54,19.43503443]
[1731934831138,26.7816,243.61,243.48,19.43503443]
[1731934831139,22.6767,243.61,243.56,19.43503443]
[1731934831333,160.0,243.69,243.6,19.43503443]
[1731934831334,15.7206,243.67,243.6,19.43503443]
[1731934831542,19.8245,243.67,243.6,19.43503443]
[1731934832553,6.4634,243.68,243.63,23.776884]
[1731934833538,6.4634,243.68,243.64,19.43503443]
[1731934834465,6.4634,243.68,243.66,19.43503443]
[1731934835259,6.0531,243.8,243.67,23.776884]
[1731934835429,6.0531,243.8,243.74,19.43503443]
[1731934836257,25.48813443,243.8,243.72,19.43503443]
[1731934836637,4.1018,243.79,243.72,19.43503443]
[1731934837652,4.1018,243.79,243.67,23.776884]
[1731934837653,19.43503443,243.78,243.7,19.43503443]
[1731934837848,19.43503443,243.78,243.68,19.43503443]
[1731934838240,12.12916034,243.77,243.68,12.12916034]
[1731934838737,16.23216034,243.73,243.64,12.12916034]
[1731934839144,16.23216034,243.73,243.56,0.1]
[1731934839145,12.12916034,243.69,243.53,16.3767]
[1731934839449,12.12916034,243.69,243.49,10.69133524]
[1731934839450,6.6066,243.67,243.61,12.12916034]
[1731934841566,6.6066,243.67,243.65,12.12916034]
[1731934842064,16.2863,243.7,243.65,12.12916034]
[1731934842267,16.2863,243.7,243.56,0.1]
[1731934842268,15.4339,243.83,243.71,0.09367462]
[1731934842572,15.4339,243.83,243.8,19.40249736]
[1731934842864,6.5922,243.89,243.82,19.40249736]
[1731934843445,25.99469736,243.89,243.8,19.40249736]
[1731934843644,30.09489736,243.89,243.78,19.40249736]
[1731934843848,19.40249736,243.85,243.76,19.40249736]
[1731934844463,19.40249736,243.87,243.78,19.40249736]
[1731934845050,19.40249736,243.83,243.71,24.027864]
[1731934845366,19.40249736,243.81,243.73,19.40249736]
[1731934845576,23.50349736,243.85,243.77,19.40249736]
[1731934845748,4.101,243.85,243.79,19.40249736]
[1731934845945,24.1005,243.88,243.79,19.40249736]
[1731934847354,19.40249736,243.87,243.79,19.40249736]
[1731934848547,4.1005,243.88,243.81,19.40249736]
[1731934851560,19.40249736,243.87,243.79,19.40249736]
[1731934851763,19.40249736,243.85,243.77,19.40249736]
[1731934853160,4.101,243.84,243.77,19.40249736]
[1731934854055,4.101,243.84,243.75,19.40249736]
[1731934854257,19.40249736,243.83,243.73,19.40249736]
[1731934854457,19.40249736,243.83,243.75,19.40249736]
[1731934855354,4.1013,243.82,243.75,19.40249736]
[1731934855557,4.1013,243.82,243.77,19.40249736]
[1731934856652,19.40249736,243.83,243.75,19.40249736]
[1731934856857,19.40249736,243.83,243.73,19.40249736]
[1731934857058,4.101,243.84,243.73,19.40249736]
[1731934857059,19.40249736,243.81,243.73,19.40249736]
[1731934858589,4.1017,243.8,243.73,19.40249736]
[1731934858956,16.3686,243.79,243.73,19.40249736]
[1731934859274,16.3686,243.79,243.75,19.40249736]
[1731934859865,16.3686,243.79,243.73,19.40249736]
[1731934860677,4.101,243.84,243.65,0.44465462]
[1731934860878,15.0651,243.87,243.74,0.21916462]
[1731934861062,19.1656,243.87,243.75,0.12549]
[1731934861266,15.0651,243.87,243.8,19.40249736]